bitfinex/quotes_BTCUSD_20250508
["timestamp","ask_amount","ask_price","bid_price","bid_amount"]
[1746745268360,0.63211258,102970.0,102960.0,0.005]
[1746745268626,0.63890919,102970.0,102960.0,0.003]
[1746745268784,0.63890919,102970.0,102960.0,0.005]
[1746745268987,0.75245004,102970.0,102960.0,0.002]
[1746745269218,0.94668136,102970.0,102960.0,0.005]
[1746745269428,0.2455953,102950.0,102940.0,0.002]
[1746745269755,0.34626222,102950.0,102940.0,0.002]
[1746745270087,0.35305883,102950.0,102940.0,0.002]
[1746745270712,0.34626222,102950.0,102940.0,0.002]
[1746745270948,0.34826222,102950.0,102940.0,0.003]
[1746745271085,0.35026222,102950.0,102940.0,0.003]
[1746745275581,0.33396222,102950.0,102940.0,0.003]
[1746745277614,0.31836222,102950.0,102940.0,0.003]
[1746745277765,0.31836222,102950.0,102940.0,0.04226481]
[1746745277945,0.31836222,102950.0,102940.0,0.003]
[1746745278350,0.35076222,102950.0,102940.0,0.003]
[1746745280503,0.40526511,102950.0,102940.0,0.003]
[1746745282828,0.75980596,102950.0,102940.0,0.003]
[1746745283245,0.85980596,102950.0,102940.0,0.003]
[1746745283839,0.80980596,102950.0,102940.0,0.003]
[1746745284056,0.86980596,102950.0,102940.0,0.003]
[1746745287185,0.76980596,102950.0,102940.0,0.003]
[1746745287386,0.86980596,102950.0,102940.0,0.003]
[1746745289257,0.76980596,102950.0,102940.0,0.003]
[1746745289595,0.76980596,102950.0,102920.0,0.0644077]
[1746745289596,0.53428793,102940.0,102920.0,0.0644077]
[1746745289879,0.22345206,102930.0,102920.0,0.28464966]
[1746745290089,0.22345206,102930.0,102920.0,0.29436585]
[1746745290399,0.02914525,102930.0,102920.0,0.31379746]
[1746745290559,0.22345206,102930.0,102920.0,0.30408185]
[1746745291087,0.01952241,102930.0,102920.0,0.55379678]
[1746745291287,0.22354484,102930.0,102920.0,0.52464926]
[1746745291518,0.21382998,102930.0,102920.0,0.52664926]
[1746745291667,0.01952317,102930.0,102920.0,0.54608078]
[1746745291873,0.01952317,102930.0,102920.0,0.32187235]
[1746745292071,0.02923851,102930.0,102920.0,0.54608078]
[1746745292304,0.22354532,102930.0,102920.0,0.54608097]
[1746745292641,0.22354532,102930.0,102920.0,0.31415673]
[1746745292851,0.22354532,102930.0,102920.0,0.10039896]
[1746745293071,0.20411512,102930.0,102920.0,0.09068268]
[1746745293664,0.20411512,102930.0,102920.0,0.04227498]
[1746745293866,0.20411512,102930.0,102920.0,0.04027498]
[1746745294070,0.20411512,102930.0,102920.0,0.04127498]
[1746745294272,0.20511512,102930.0,102920.0,0.04127498]
[1746745294773,0.20511512,102930.0,102920.0,0.23560066]
[1746745294983,0.20511512,102930.0,102920.0,0.24531685]
[1746745295140,0.20511512,102930.0,102920.0,0.25503294]
[1746745295342,0.20511512,102930.0,102920.0,0.23560066]
[1746745295544,0.20511512,102930.0,102920.0,0.24531685]
[1746745295743,0.20511512,102930.0,102920.0,0.25503294]
[1746745296262,0.20511512,102930.0,102920.0,0.04127498]
[1746745296805,0.20511512,102930.0,102920.0,0.06070745]
[1746745297015,0.20511512,102930.0,102920.0,0.05099126]
[1746745297215,0.20511512,102930.0,102920.0,0.25503313]
[1746745299090,0.20511512,102930.0,102920.0,0.26474922]
[1746745299734,0.20511512,102930.0,102920.0,0.24531694]
[1746745299998,0.20511512,102930.0,102920.0,0.26474922]
[1746745300522,0.20511512,102930.0,102920.0,0.27446522]
[1746745300784,0.20511512,102930.0,102920.0,0.28418112]
[1746745301302,0.20511512,102930.0,102920.0,0.25503313]
[1746745301459,0.20511512,102930.0,102920.0,0.05099126]
[1746745301879,0.20511512,102930.0,102920.0,0.26474913]
[1746745302198,0.20511512,102930.0,102920.0,0.04127498]
[1746745302412,0.19539978,102930.0,102920.0,0.00907498]
[1746745302622,0.29849582,102930.0,102920.0,0.00907498]
[1746745302773,0.2960667,102930.0,102920.0,0.00907498]
[1746745303973,0.30288874,102930.0,102920.0,0.00907498]
[1746745304146,0.30288874,102930.0,102920.0,0.003]
[1746745306979,0.35260641,102930.0,102920.0,0.003]
[1746745307187,0.72430641,102930.0,102920.0,0.003]
[1746745308044,0.72430641,102930.0,102920.0,0.002]
[1746745308045,0.72330641,102930.0,102920.0,0.002]
[1746745308216,0.20404177,102920.0,102910.0,0.08894225]
[1746745308433,0.30470869,102920.0,102910.0,0.08894225]
[1746745308665,0.31153073,102920.0,102910.0,0.08894225]
[1746745309037,0.31153073,102920.0,102910.0,0.10474225]
[1746745309505,0.31153073,102920.0,102910.0,0.10574225]
[1746745309506,0.31453073,102920.0,102910.0,0.10574225]
[1746745309886,0.12020505,102920.0,102910.0,0.3360208]
[1746745310114,0.00982204,102920.0,102910.0,0.37626319]
[1746745310244,0.006,102920.0,102910.0,0.56994579]
[1746745311052,0.006,102920.0,102910.0,0.60047162]
[1746745311262,0.006,102920.0,102910.0,0.90994579]
[1746745312074,0.003,102920.0,102910.0,0.68473736]
[1746745312374,0.003,102920.0,102910.0,0.90894579]
[1746745312867,9.297e-05,102930.0,102920.0,0.00971628]
[1746745313069,9.297e-05,102930.0,102920.0,0.04281628]
[1746745314092,0.00452199,102930.0,102920.0,0.0341]
[1746745314518,0.00309297,102930.0,102920.0,0.0341]
[1746745315051,0.00309297,102930.0,102910.0,0.75588978]
[1746745315410,0.00309297,102930.0,102910.0,0.79630196]
[1746745316137,0.00109297,102930.0,102910.0,0.79630196]
[1746745316356,0.00209297,102930.0,102910.0,0.79730196]
[1746745316875,0.00452199,102930.0,102910.0,0.78758559]
[1746745317281,0.00109297,102930.0,102910.0,0.78758559]
[1746745317491,0.00109297,102930.0,102910.0,0.78858559]
[1746745317891,0.00109297,102930.0,102910.0,0.82088559]
[1746745318271,0.00109297,102930.0,102920.0,0.0157]
[1746745318844,0.00109297,102930.0,102910.0,0.80140593]
[1746745319213,9.297e-05,102930.0,102910.0,0.81983953]
[1746745319408,9.297e-05,102930.0,102910.0,0.82955619]
[1746745319612,0.00209297,102930.0,102920.0,0.001]
[1746745320108,9.297e-05,102930.0,102910.0,0.82955562]
[1746745320308,0.00109297,102930.0,102910.0,0.81983906]
[1746745320510,0.00209297,102930.0,102910.0,0.34660075]
[1746745320749,0.13688891,102930.0,102910.0,0.09009232]
[1746745321119,0.13688891,102930.0,102910.0,0.08909232]
[1746745321120,0.10066692,102920.0,102910.0,0.08909232]
[1746745321352,0.29742194,102920.0,102910.0,0.04041218]
[1746745321609,0.2949926,102920.0,102900.0,0.05043743]
[1746745321789,0.00242941,102910.0,102900.0,0.05043743]
[1746745322119,0.00242941,102910.0,102900.0,0.06633743]
[1746745322881,0.2949926,102920.0,102900.0,0.05043743]
[1746745323094,0.3265926,102920.0,102900.0,0.05043743]
[1746745323233,0.001,102910.0,102900.0,0.05243743]
[1746745323587,0.3265926,102920.0,102900.0,0.05043743]
[1746745323934,0.3344117,102920.0,102900.0,0.05243743]
[1746745324129,0.3354117,102920.0,102900.0,0.09486865]
[1746745324382,0.3344117,102920.0,102900.0,0.09186865]
[1746745324784,0.001,102910.0,102900.0,0.09486865]
[1746745324981,0.3344117,102920.0,102900.0,0.09186865]
[1746745325224,0.3344117,102920.0,102900.0,0.09486865]
[1746745325406,0.3354117,102920.0,102900.0,0.09486865]
[1746745325613,0.3354117,102920.0,102900.0,0.09286865]
[1746745325920,0.3344117,102920.0,102900.0,0.09286865]
[1746745326124,0.001,102910.0,102900.0,0.09486865]
[1746745326554,0.3344117,102920.0,102900.0,0.09286865]
[1746745327016,0.00242955,102910.0,102900.0,0.09186865]
[1746745327217,0.10309647,102910.0,102900.0,0.09186865]
[1746745327418,0.10409647,102910.0,102900.0,0.09286865]
[1746745327642,0.10309647,102910.0,102900.0,0.08986865]
[1746745328020,0.10309647,102910.0,102900.0,0.09286865]
[1746745328174,0.10309647,102910.0,102900.0,0.08986865]
[1746745328579,0.10309647,102910.0,102900.0,0.09086865]
[1746745329219,0.10309647,102910.0,102900.0,0.09286865]
[1746745329220,0.10409647,102910.0,102900.0,0.09286865]
[1746745329640,0.10309647,102910.0,102900.0,0.09086865]
[1746745330027,0.10409647,102910.0,102900.0,0.09186865]
[1746745330216,0.10166692,102910.0,102900.0,0.09186865]
[1746745330415,0.13589648,102910.0,102900.0,0.09186865]
[1746745332007,0.13346692,102910.0,102900.0,0.09186865]
[1746745333432,0.55340469,102910.0,102900.0,0.05243743]
[1746745333632,0.55097503,102910.0,102900.0,0.05243743]
[1746745333848,0.84816771,102910.0,102900.0,0.05243743]
[1746745334686,0.76185573,102910.0,102900.0,0.05243743]
[1746745335008,0.76185573,102910.0,102900.0,0.05143743]
[1746745335188,0.76385573,102910.0,102900.0,0.05143743]
[1746745335796,0.83385573,102910.0,102900.0,0.05143743]
[1746745335997,0.83785573,102910.0,102900.0,0.05143743]
[1746745336246,0.9530635,102910.0,102900.0,0.05143743]
[1746745336449,0.98129399,102910.0,102900.0,0.003]
[1746745336697,0.98129399,102910.0,102900.0,0.00221053]
[1746745336898,0.87311896,102910.0,102900.0,0.00221053]
[1746745337111,0.84588847,102910.0,102900.0,0.00221053]
[1746745337314,0.84188847,102910.0,102900.0,0.00221053]
[1746745337489,0.83888847,102910.0,102900.0,0.00121053]
[1746745337716,0.87387155,102910.0,102900.0,0.00221053]
[1746745338152,0.92387155,102910.0,102900.0,0.00221053]
[1746745338361,0.91387155,102910.0,102900.0,0.00221053]
[1746745338568,0.99025463,102910.0,102900.0,0.00221053]
[1746745338997,0.98425463,102910.0,102900.0,0.00221053]
[1746745339422,0.86705245,102910.0,102900.0,0.00221053]
[1746745339639,1.58704764,102910.0,102900.0,0.00221053]
[1746745339841,1.68704764,102910.0,102900.0,0.00221053]
[1746745340044,1.11932852,102910.0,102900.0,0.00221053]
[1746745340196,1.18932852,102910.0,102900.0,0.00221053]
[1746745340957,1.52932852,102910.0,102900.0,0.00221053]
[1746745341238,1.55386937,102910.0,102900.0,0.00221053]
[1746745341445,1.65453629,102910.0,102900.0,0.00221053]
[1746745343318,1.52932852,102910.0,102900.0,0.00221053]
[1746745347426,1.53612784,102910.0,102900.0,0.00221053]
[1746745347844,1.44992784,102910.0,102900.0,0.00221053]
[1746745348043,1.43432536,102910.0,102900.0,0.00221053]
[1746745350579,1.09432536,102910.0,102900.0,0.00221053]
[1746745352091,0.20718079,102910.0,102900.0,0.00221053]
[1746745352645,0.3225,102910.0,102900.0,0.00221053]
[1746745354102,0.3529,102910.0,102900.0,0.00221053]
[1746745354296,0.6929,102910.0,102900.0,0.00221053]
[1746745355672,0.67475307,102910.0,102900.0,0.00221053]
[1746745356898,1.50174148,102910.0,102900.0,0.00221053]
[1746745357164,1.67345466,102910.0,102900.0,0.00221053]
[1746745357597,0.0321,102900.0,102860.0,0.04812318]
[1746745357803,0.10509741,102890.0,102860.0,0.04812318]
[1746745358013,0.13719741,102890.0,102850.0,0.27270326]
[1746745358220,0.14399425,102890.0,102850.0,0.27270326]
[1746745358993,0.14399425,102890.0,102850.0,0.27318309]
[1746745359801,0.14399425,102890.0,102850.0,0.04897466]
[1746745359984,0.14399425,102890.0,102870.0,0.04880513]
[1746745360383,0.14399425,102890.0,102860.0,0.0639788]
[1746745360751,0.14499425,102890.0,102860.0,0.0639788]
[1746745360953,0.16674449,102890.0,102860.0,0.0639788]
[1746745361158,0.14599425,102890.0,102870.0,0.001]
[1746745361290,0.15099425,102890.0,102870.0,0.001]
[1746745361494,0.031,102880.0,102860.0,0.0488788]
[1746745361727,0.003,102890.0,102860.0,0.0678788]
[1746745361961,0.07750811,102900.0,102890.0,0.00243048]
[1746745362464,0.17817503,102900.0,102890.0,0.00243048]
[1746745362622,0.07750811,102900.0,102890.0,0.00243048]
[1746745363260,0.07750811,102900.0,102890.0,0.00047983]
[1746745363629,0.08550811,102900.0,102890.0,0.00047983]
[1746745364018,0.08950811,102900.0,102890.0,0.00047983]
[1746745364558,0.12050811,102900.0,102890.0,0.00047983]
[1746745365185,0.043,102900.0,102890.0,0.00047983]
[1746745366144,0.14366692,102900.0,102890.0,0.00047983]
[1746745369309,0.18513434,102900.0,102890.0,0.00047983]
[1746745369681,0.14366692,102900.0,102890.0,0.00047983]
[1746745370845,0.23571588,102900.0,102890.0,0.00047983]
[1746745371048,0.29571588,102900.0,102890.0,0.00047983]
[1746745371180,0.28571588,102900.0,102890.0,0.00047983]
[1746745371383,0.36563588,102900.0,102890.0,0.00047983]
[1746745371614,0.3929023,102900.0,102890.0,0.00047983]
[1746745371836,0.47115958,102900.0,102890.0,0.00047983]
[1746745373851,0.4893398,102900.0,102890.0,0.00047983]
[1746745374898,0.47115958,102900.0,102890.0,0.00047983]
[1746745375157,0.46115958,102900.0,102890.0,0.00047983]
[1746745376288,0.47932906,102900.0,102890.0,0.00047983]
[1746745377012,0.81932906,102900.0,102890.0,0.00047983]
[1746745377218,0.80115958,102900.0,102890.0,0.00047983]
[1746745378589,0.87115958,102900.0,102890.0,0.00047983]
[1746745378815,0.7929023,102900.0,102890.0,0.00047983]
[1746745380196,0.81106809,102900.0,102890.0,0.00047983]
[1746745380842,0.73355998,102900.0,102890.0,0.00047983]
[1746745382251,0.71539419,102900.0,102890.0,0.00047983]
[1746745383203,0.81769419,102900.0,102890.0,0.00047983]
[1746745383416,0.91836111,102900.0,102890.0,0.00047983]
[1746745384794,0.93653681,102900.0,102890.0,0.00047983]
[1746745384999,0.94335277,102900.0,102890.0,0.00047983]
[1746745386220,0.84268585,102900.0,102890.0,0.00047983]
[1746745386619,1.019965,102900.0,102890.0,0.00047983]
[1746745386838,1.004965,102900.0,102890.0,0.00047983]
[1746745387040,1.054965,102900.0,102890.0,0.00047983]
[1746745387254,1.086865,102900.0,102890.0,0.00047983]
[1746745387453,1.18753192,102900.0,102890.0,0.00047983]
[1746745387937,1.020565,102900.0,102890.0,0.00047983]
[1746745388739,1.070565,102900.0,102890.0,0.00047983]
[1746745388997,1.020565,102900.0,102890.0,0.00047983]
[1746745389898,1.020565,102900.0,102890.0,0.03277983]
[1746745389899,0.585085,102900.0,102890.0,0.03277983]
[1746745390111,0.994925,102900.0,102890.0,0.03277983]
[1746745390336,0.654925,102900.0,102890.0,0.03277983]
[1746745390548,0.96765858,102900.0,102890.0,0.03277983]
[1746745390755,0.89781858,102900.0,102890.0,0.03277983]
[1746745390966,0.62765858,102900.0,102890.0,0.03277983]
[1746745391362,0.96765858,102900.0,102890.0,0.03277983]
[1746745391926,0.96084262,102900.0,102890.0,0.03277983]
[1746745392131,0.55100262,102900.0,102890.0,0.03277983]
[1746745392344,0.53282692,102900.0,102890.0,0.03277983]
[1746745394033,0.64031128,102900.0,102890.0,0.00047983]
[1746745394433,0.65849025,102900.0,102890.0,0.00047983]
[1746745394809,0.55782333,102900.0,102890.0,0.00047983]
[1746745395556,0.89782333,102900.0,102890.0,0.00047983]
[1746745398132,0.89782333,102900.0,102890.0,0.01557983]
[1746745398750,0.89782333,102900.0,102890.0,0.03207983]
[1746745399861,0.89782333,102900.0,102890.0,0.00047983]
[1746745400064,0.92356093,102900.0,102890.0,0.00047983]
[1746745400285,0.95486093,102900.0,102890.0,0.00047983]
[1746745400487,0.93886093,102900.0,102890.0,0.00047983]
[1746745400736,0.92356093,102900.0,102890.0,0.00047983]
[1746745402197,0.95456093,102900.0,102890.0,0.00047983]
[1746745402676,0.93956093,102900.0,102890.0,0.00047983]
[1746745403614,0.92356093,102900.0,102890.0,0.00047983]
[1746745405601,0.89782333,102900.0,102890.0,0.01577983]
[1746745405848,0.54766333,102900.0,102890.0,0.03077983]
[1746745406319,0.20766333,102900.0,102890.0,0.03077983]
[1746745409368,0.10699641,102900.0,102890.0,0.03077983]
[1746745409759,0.08881744,102900.0,102890.0,0.03077983]
[1746745410012,0.082,102900.0,102890.0,0.03077983]
[1746745410386,0.10017897,102900.0,102890.0,0.03077983]
[1746745410891,0.082,102900.0,102890.0,0.03077983]
[1746745411034,0.10017897,102900.0,102890.0,0.03077983]
[1746745411241,0.10017897,102900.0,102890.0,0.06344785]
[1746745411440,0.10017897,102900.0,102890.0,0.03077983]
[1746745412432,0.10017897,102900.0,102890.0,0.07123146]
[1746745412631,0.10017897,102900.0,102890.0,0.03077983]
[1746745417107,0.082,102900.0,102890.0,0.03077983]
[1746745417290,0.082,102900.0,102890.0,0.10256439]
[1746745417512,0.082,102900.0,102890.0,0.28765628]
[1746745417683,0.082,102900.0,102890.0,0.32077593]
[1746745418080,0.012,102900.0,102890.0,0.0965675]
[1746745418266,0.012,102900.0,102890.0,0.32077593]
[1746745418691,0.002,102910.0,102890.0,0.29047593]
[1746745418861,0.002,102910.0,102900.0,0.06381965]
[1746745419066,0.002,102910.0,102900.0,0.09547763]
[1746745419263,0.02015878,102910.0,102900.0,0.09547763]
[1746745419873,0.002,102910.0,102900.0,0.09547763]
[1746745420480,0.008,102910.0,102900.0,0.09547763]
[1746745421092,0.004,102910.0,102900.0,0.09547763]
[1746745421539,0.011,102910.0,102900.0,0.09547763]
[1746745422009,0.011,102910.0,102900.0,0.31968606]
[1746745422225,0.011,102910.0,102900.0,0.28165375]
[1746745422433,0.011,102910.0,102900.0,0.30431973]
[1746745427240,0.011,102910.0,102900.0,0.0307]
[1746745427489,0.14356692,102910.0,102890.0,0.05536769]
[1746745427680,0.26943172,102910.0,102890.0,0.00047983]
[1746745427821,0.22107503,102910.0,102890.0,0.00047983]
[1746745428221,0.21907503,102910.0,102890.0,0.00047983]
[1746745428421,0.23720494,102910.0,102890.0,0.00047983]
[1746745428625,0.23820494,102910.0,102890.0,0.00047983]
[1746745428906,0.2450041,102910.0,102890.0,0.00047983]
[1746745429393,0.2380041,102910.0,102890.0,0.00047983]
[1746745429731,0.2440041,102910.0,102890.0,0.00047983]
[1746745429964,0.34,102900.0,102890.0,0.00047983]
[1746745430184,0.35812991,102900.0,102890.0,0.00047983]
[1746745430369,0.36492907,102900.0,102890.0,0.00047983]
[1746745431012,0.38472907,102900.0,102890.0,0.00047983]
[1746745431245,0.38472907,102900.0,102890.0,0.00147983]
[1746745432347,0.48539599,102900.0,102890.0,0.00147983]
[1746745432784,0.50059599,102900.0,102890.0,0.00147983]
[1746745433538,0.48539599,102900.0,102890.0,0.00147983]
[1746745434689,0.46959599,102900.0,102890.0,0.00147983]
[1746745435708,0.12959599,102900.0,102890.0,0.00147983]
[1746745437302,0.12279683,102900.0,102890.0,0.00147983]
[1746745438119,0.17852043,102900.0,102890.0,0.00147983]
[1746745438334,0.14619599,102900.0,102890.0,0.00147983]
[1746745438536,0.12959599,102900.0,102890.0,0.00147983]
[1746745439158,0.12279683,102900.0,102890.0,0.00147983]
[1746745440463,0.12279683,102900.0,102890.0,0.24078826]
[1746745440864,0.12279683,102900.0,102890.0,0.01657983]
[1746745441263,0.12279683,102900.0,102890.0,0.25578826]
[1746745441264,0.02212991,102900.0,102890.0,0.25578826]
[1746745442059,0.02212991,102900.0,102890.0,0.43157983]
[1746745442259,0.02212991,102900.0,102890.0,0.65578826]
[1746745442629,0.02212991,102900.0,102890.0,0.85017061]
[1746745442800,0.02212991,102900.0,102890.0,1.03445527]
[1746745443262,0.02212991,102900.0,102890.0,1.59741002]
[1746745443482,0.004,102900.0,102890.0,1.62054752]
[1746745444087,0.004,102900.0,102890.0,2.03684752]
[1746745445379,0.002,102910.0,102900.0,0.55862237]
[1746745445583,0.002,102910.0,102900.0,1.14952413]
[1746745445793,0.002,102910.0,102900.0,1.15924183]
[1746745446013,0.002,102910.0,102900.0,1.16895943]
[1746745446221,0.002,102910.0,102900.0,1.56895943]
[1746745446428,0.006,102910.0,102900.0,1.56895943]
[1746745446640,0.006,102910.0,102900.0,1.54952413]
[1746745446845,0.006,102910.0,102900.0,1.33572463]
[1746745447102,0.02411625,102910.0,102900.0,1.1115162]
[1746745447335,0.02411625,102910.0,102900.0,0.7721]
[1746745447538,0.02411625,102910.0,102900.0,0.99630843]
[1746745448147,0.006,102910.0,102900.0,0.7721]
[1746745448300,0.006,102910.0,102900.0,0.99630843]
[1746745449065,0.02408724,102910.0,102900.0,0.99630843]
[1746745450450,0.02408724,102910.0,102900.0,0.7721]
[1746745450886,0.02408724,102910.0,102900.0,0.98040843]
[1746745451123,0.02408724,102910.0,102900.0,0.99550843]
[1746745451325,0.02408724,102910.0,102900.0,1.42379848]
[1746745451510,0.02408724,102910.0,102900.0,1.43351655]
[1746745451679,0.02408724,102910.0,102900.0,1.21971686]
[1746745451880,0.02408724,102910.0,102900.0,1.46784466]
[1746745452189,0.02408724,102910.0,102900.0,1.48728033]
[1746745452397,0.02408724,102910.0,102900.0,1.47756254]
[1746745453240,0.006,102910.0,102900.0,1.47756254]
[1746745453887,0.006,102910.0,102900.0,1.49976103]
[1746745454291,0.006,102910.0,102900.0,1.6344041]
[1746745454512,0.006,102910.0,102900.0,1.65608043]
[1746745455182,0.02010868,102930.0,102920.0,0.8001502]
[1746745455385,0.02010868,102930.0,102920.0,0.61642951]
[1746745455585,0.02010868,102930.0,102920.0,0.63723483]
[1746745455985,0.02010868,102930.0,102920.0,1.03723483]
[1746745456305,0.02010868,102930.0,102920.0,1.2509927]
[1746745456784,0.002,102930.0,102920.0,1.2509927]
[1746745456960,0.002,102930.0,102920.0,1.25099279]
[1746745457365,0.002,102930.0,102920.0,1.26070879]
[1746745457802,0.008,102930.0,102920.0,1.26170879]
[1746745458152,0.008,102930.0,102920.0,1.62343162]
[1746745458153,0.01,102930.0,102920.0,1.62343162]
[1746745458353,0.01,102930.0,102920.0,1.62560662]
[1746745458575,0.01,102930.0,102920.0,1.17718976]
[1746745458798,0.01,102930.0,102920.0,1.3552213]
[1746745459035,0.004,102930.0,102920.0,1.3542213]
[1746745459278,0.005,102930.0,102920.0,1.57842973]
[1746745460411,0.003,102930.0,102920.0,1.57842973]
[1746745460627,0.02010815,102950.0,102940.0,0.26947082]
[1746745460840,0.002,102950.0,102940.0,1.1585546]
[1746745460986,0.002,102950.0,102940.0,1.2288346]
[1746745461394,0.002,102950.0,102940.0,1.42970742]
[1746745461615,0.002,102950.0,102940.0,1.45254423]
[1746745461946,0.00204788,102950.0,102940.0,1.45354423]
[1746745462153,0.00204788,102950.0,102940.0,1.45554423]
[1746745462443,0.00204788,102950.0,102940.0,1.45258543]
[1746745463929,0.02147327,102950.0,102940.0,1.42750418]
[1746745464159,0.01176048,102950.0,102940.0,1.42750418]
[1746745464427,0.02147327,102950.0,102940.0,1.42750418]
[1746745464839,0.01176048,102950.0,102940.0,1.34950815]
[1746745465043,0.02147336,102950.0,102940.0,1.34950815]
[1746745465365,0.01176048,102950.0,102940.0,1.34950815]
[1746745465962,0.02147336,102950.0,102940.0,1.34950815]
[1746745466174,0.02147327,102950.0,102940.0,1.76580815]
[1746745466388,0.02147327,102950.0,102940.0,1.77297002]
[1746745466594,0.02147317,102950.0,102940.0,1.77297002]
[1746745466795,0.02147317,102950.0,102940.0,1.78751087]
[1746745467357,0.01176048,102950.0,102940.0,1.82095163]
[1746745467746,0.01176048,102950.0,102940.0,1.85295163]
[1746745467941,0.02147317,102950.0,102940.0,1.85295163]
[1746745468579,0.04089903,102950.0,102940.0,1.55924166]
[1746745468784,0.031187,102950.0,102940.0,1.8430779]
[1746745468981,0.04090035,102950.0,102940.0,1.85279183]
[1746745469199,0.031187,102950.0,102940.0,1.43649201]
[1746745470040,0.031187,102950.0,102940.0,1.44620593]
[1746745470187,0.04090045,102950.0,102940.0,1.44620593]
[1746745470733,0.02147374,102950.0,102940.0,1.45591966]
[1746745471152,0.03118709,102950.0,102940.0,1.43649201]
[1746745471507,0.0214743,102950.0,102940.0,0.66064919]
[1746745471719,0.0528743,102950.0,102940.0,0.43644076]
[1746745471918,0.15354122,102950.0,102940.0,0.43644076]
[1746745472246,0.17161869,102950.0,102940.0,0.03644076]
[1746745472775,0.07095177,102950.0,102940.0,0.03644076]
[1746745473158,0.17161869,102950.0,102940.0,0.03644076]
[1746745473770,0.17161869,102950.0,102940.0,0.03544076]
[1746745474024,0.17161869,102950.0,102940.0,0.03344076]
[1746745474201,0.17161869,102950.0,102940.0,0.25864919]
[1746745474202,0.07495177,102950.0,102940.0,0.25864919]
[1746745474401,0.07495177,102950.0,102940.0,0.22520843]
[1746745474800,0.07495177,102950.0,102940.0,0.001]
[1746745476382,0.07495177,102950.0,102940.0,0.22520843]
[1746745477223,0.07495177,102950.0,102940.0,0.001]
[1746745478351,0.17561869,102950.0,102940.0,0.001]
[1746745478724,0.18240382,102950.0,102940.0,0.001]
[1746745483187,0.20049184,102950.0,102940.0,0.001]
[1746745484029,0.18240382,102950.0,102940.0,0.001]
[1746745494966,0.53240382,102950.0,102940.0,0.001]
[1746745495744,0.88228382,102950.0,102940.0,0.001]
[1746745495945,0.87228382,102950.0,102940.0,0.001]
[1746745496546,0.0314,102940.0,102900.0,0.70309815]
[1746745496744,0.13206692,102930.0,102900.0,0.70309815]
[1746745497154,0.15014439,102930.0,102900.0,0.65730843]
[1746745497356,0.15692952,102930.0,102900.0,0.65730843]
[1746745497557,0.15692952,102930.0,102900.0,0.65830843]
[1746745497793,0.0314,102920.0,102900.0,0.403]
[1746745497999,0.13206692,102920.0,102900.0,0.403]
[1746745498211,0.13206692,102920.0,102900.0,0.402]
[1746745498402,0.15014439,102920.0,102900.0,0.62720843]
[1746745499392,0.15014439,102920.0,102900.0,0.22720843]
[1746745499607,0.15014439,102920.0,102900.0,0.22620843]
[1746745499809,0.15014439,102920.0,102900.0,0.62620843]
[1746745500038,0.15014439,102920.0,102900.0,0.62920843]
[1746745501300,0.0248626,102920.0,102910.0,0.22420843]
[1746745501529,0.0248626,102920.0,102910.0,0.24030843]
[1746745501727,0.0248626,102920.0,102910.0,0.47391098]
[1746745501728,0.01807747,102920.0,102910.0,0.47391098]
[1746745501859,0.01807747,102920.0,102910.0,0.46419385]
[1746745502066,0.01807747,102920.0,102910.0,0.83334439]
[1746745502744,0.01807747,102920.0,102910.0,0.93401131]
[1746745503170,0.002,102920.0,102910.0,1.00629131]
[1746745503795,0.37687832,102950.0,102930.0,0.0155]
[1746745504000,0.37687832,102950.0,102940.0,0.22420843]
[1746745504421,0.02699832,102950.0,102940.0,0.93484646]
[1746745504588,0.02699832,102950.0,102940.0,0.92513263]
[1746745504780,0.02021319,102950.0,102920.0,0.032]
[1746745505001,0.02021319,102950.0,102920.0,0.432]
[1746745505203,0.02021319,102950.0,102920.0,0.65620843]
[1746745505414,0.02021319,102950.0,102930.0,0.22420843]
[1746745506036,0.06739832,102950.0,102930.0,0.22520843]
[1746745506240,0.07339832,102950.0,102930.0,0.22520843]
[1746745506459,0.05939832,102950.0,102930.0,0.22420843]
[1746745506659,0.06339832,102950.0,102930.0,0.22420843]
[1746745506959,0.06839832,102950.0,102930.0,0.22520843]
[1746745508013,0.06839832,102950.0,102930.0,0.001]
[1746745508220,0.06839832,102950.0,102930.0,0.22520843]
[1746745509529,0.06839832,102950.0,102930.0,0.001]
[1746745509803,0.06839832,102950.0,102930.0,0.22520843]
[1746745510624,0.06839832,102950.0,102930.0,0.25867832]
[1746745510827,0.16906524,102950.0,102930.0,0.03446989]
[1746745511060,0.15256524,102950.0,102930.0,0.03446989]
[1746745511273,0.0322,102940.0,102930.0,0.03446989]
[1746745511668,0.05715044,102940.0,102930.0,0.03446989]
[1746745512151,0.05715044,102940.0,102930.0,0.03346989]
[1746745512495,0.16081736,102940.0,102930.0,0.001]
[1746745512943,0.16181736,102940.0,102930.0,0.001]
[1746745515206,0.18906823,102940.0,102930.0,0.001]
[1746745515413,0.16181736,102940.0,102930.0,0.001]
[1746745515607,0.18906181,102940.0,102930.0,0.001]
[1746745515962,0.16181736,102940.0,102930.0,0.001]
[1746745516365,0.18906167,102940.0,102930.0,0.001]
[1746745516571,0.16181736,102940.0,102930.0,0.001]
[1746745517265,0.16181736,102940.0,102930.0,0.00080937]
[1746745518194,0.17820388,102940.0,102930.0,0.00080937]
[1746745518461,0.33400987,102940.0,102930.0,0.00080937]
[1746745518883,0.07454085,102930.0,102900.0,0.002]
[1746745519116,0.0317,102910.0,102900.0,0.002]
[1746745519319,0.13236692,102910.0,102900.0,0.002]
[1746745519528,0.15731736,102910.0,102900.0,0.002]
[1746745519946,0.12561736,102910.0,102900.0,0.002]
[1746745520203,0.15691736,102910.0,102900.0,0.002]
[1746745520461,0.15691736,102910.0,102900.0,0.00247983]
[1746745520462,0.12561736,102910.0,102900.0,0.00247983]
[1746745520708,0.12861736,102910.0,102900.0,0.00347983]
[1746745521223,0.12183223,102910.0,102900.0,0.00347983]
[1746745521426,0.15313223,102910.0,102900.0,0.00347983]
[1746745522041,0.15413223,102910.0,102900.0,0.00347983]
[1746745522695,0.13803223,102910.0,102900.0,0.00347983]
[1746745524574,0.12283223,102910.0,102900.0,0.00347983]
[1746745525826,0.02216531,102910.0,102900.0,0.22768826]
[1746745526030,0.02216531,102910.0,102900.0,0.25938826]
[1746745526898,0.004,102910.0,102900.0,0.59938826]
[1746745527446,0.004,102910.0,102900.0,0.99938826]
[1746745528853,0.004,102910.0,102900.0,0.77517983]
[1746745529284,0.004,102910.0,102900.0,0.99938826]
[1746745530113,0.004,102910.0,102900.0,1.00910643]
[1746745530260,0.004,102910.0,102900.0,1.42767831]
[1746745530460,0.004,102910.0,102900.0,1.20346988]